[Event "Titled Tuesday Blitz May 2 Early 2023"]
[White "Kiselev, Pavel"]
[Black "Principe, Gerson"]
[WhiteFideId "4191102"]
[BlackFideId "3804550"]
[WhiteElo "2145"]
[BlackElo "2229"]
[Result "0-1"]
[Round "07"]
[TimeControl "180+2"]
[Date "2023.05.03"]
[WhiteClock "0:00:00"]
[BlackClock "0:00:00"]

1. Nf3 {[%clk 0:00:01]}  Nf6 {[%clk 0:00:01]} 2. c4 {[%clk 0:00:01]}  e6 {[%clk 0:00:01]} 3. d4 {[%clk 0:00:01]}  b6 {[%clk 0:00:01]} 4. g3 {[%clk 0:00:01]}  Bb7 {[%clk 0:00:01]} 5. Bg2 {[%clk 0:00:01]}  Be7 {[%clk 0:00:01]} 6. O-O {[%clk 0:00:01]}  O-O {[%clk 0:00:01]} 7. Nc3 {[%clk 0:00:01]}  Ne4 {[%clk 0:00:01]} 8. Qc2 {[%clk 0:00:01]}  Nxc3 {[%clk 0:00:01]} 9. bxc3 {[%clk 0:00:01]}  f5 {[%clk 0:00:01]} 10. Ne5 {[%clk 0:00:01]}  Bxg2 {[%clk 0:00:01]} 11. Kxg2 {[%clk 0:00:01]}  d6 {[%clk 0:00:01]} 12. Nf3 {[%clk 0:00:01]}  Nc6 {[%clk 0:00:01]} 13. e4 {[%clk 0:00:01]}  Na5 {[%clk 0:00:01]} 14. exf5 {[%clk 0:00:01]}  Rxf5 {[%clk 0:00:01]} 15. Qe4 {[%clk 0:00:01]}  Qc8 {[%clk 0:00:01]} 16. d5 {[%clk 0:00:01]}  e5 {[%clk 0:00:01]} 17. Nd2 {[%clk 0:00:01]}  Qd7 {[%clk 0:00:00]} 18. f4 {[%clk 0:00:01]}  Raf8 {[%clk 0:00:00]} 19. fxe5 {[%clk 0:00:01]}  Rxe5 {[%clk 0:00:00]} 20. Rxf8+ {[%clk 0:00:01]}  Bxf8 {[%clk 0:00:00]} 21. Qd3 {[%clk 0:00:01]}  Qg4 {[%clk 0:00:00]} 22. Nf3 {[%clk 0:00:01]}  Re8 {[%clk 0:00:00]} 23. c5 {[%clk 0:00:00]}  dxc5 {[%clk 0:00:00]} 24. Bf4 {[%clk 0:00:00]}  Bd6 {[%clk 0:00:00]} 25. Bxd6 {[%clk 0:00:00]}  cxd6 {[%clk 0:00:00]} 26. Rf1 {[%clk 0:00:00]}  h6 {[%clk 0:00:00]} 27. Qb5 {[%clk 0:00:00]}  Re3 {[%clk 0:00:00]} 28. Rf2 {[%clk 0:00:00]}  Nc4 {[%clk 0:00:00]} 29. Qxc5 {[%clk 0:00:00]}  bxc5 {[%clk 0:00:00]} 0-1


[Site "https://www.chess.com"]

[Event "Titled Tuesday Blitz May 2 Early 2023"]
[White "Bouget, Alexandre"]
[Black "Nikologorskiy, Konstantin"]
[WhiteFideId "681318"]
[BlackFideId "24111708"]
[WhiteElo "2182"]
[BlackElo "2293"]
[Result "1-0"]
[Round "07"]
[TimeControl "180+2"]
[Date "2023.05.03"]
[WhiteClock "0:00:00"]
[BlackClock "0:00:00"]

1. d4 {[%clk 0:00:01]}  Nf6 {[%clk 0:00:01]} 2. c4 {[%clk 0:00:01]}  e6 {[%clk 0:00:01]} 3. Nc3 {[%clk 0:00:01]}  Bb4 {[%clk 0:00:01]} 4. a3 {[%clk 0:00:01]}  Bxc3+ {[%clk 0:00:01]} 5. bxc3 {[%clk 0:00:01]}  c5 {[%clk 0:00:01]} 6. f3 {[%clk 0:00:01]}  O-O {[%clk 0:00:01]} 7. e4 {[%clk 0:00:01]}  Ne8 {[%clk 0:00:01]} 8. Bd3 {[%clk 0:00:01]}  b6 {[%clk 0:00:01]} 9. Ne2 {[%clk 0:00:01]}  Ba6 {[%clk 0:00:01]} 10. O-O {[%clk 0:00:01]}  d6 {[%clk 0:00:01]} 11. d5 {[%clk 0:00:01]}  Nd7 {[%clk 0:00:01]} 12. f4 {[%clk 0:00:01]}  exd5 {[%clk 0:00:01]} 13. cxd5 {[%clk 0:00:01]}  Bxd3 {[%clk 0:00:01]} 14. Qxd3 {[%clk 0:00:01]}  f5 {[%clk 0:00:01]} 15. Ng3 {[%clk 0:00:01]}  fxe4 {[%clk 0:00:01]} 16. Nxe4 {[%clk 0:00:01]}  h6 {[%clk 0:00:01]} 17. c4 {[%clk 0:00:01]}  Ndf6 {[%clk 0:00:01]} 18. Ng3 {[%clk 0:00:01]}  b5 {[%clk 0:00:01]} 19. Bb2 {[%clk 0:00:01]}  bxc4 {[%clk 0:00:01]} 20. Qxc4 {[%clk 0:00:01]}  Nc7 {[%clk 0:00:01]} 21. Rad1 {[%clk 0:00:01]}  Rb8 {[%clk 0:00:01]} 22. Bc3 {[%clk 0:00:01]}  Nb5 {[%clk 0:00:00]} 23. Bb2 {[%clk 0:00:01]}  Nc7 {[%clk 0:00:00]} 24. Rd2 {[%clk 0:00:01]}  Re8 {[%clk 0:00:00]} 25. Rfd1 {[%clk 0:00:00]}  Qe7 {[%clk 0:00:00]} 26. Nf5 {[%clk 0:00:00]}  Qd7 {[%clk 0:00:00]} 27. Nxh6+ {[%clk 0:00:00]}  gxh6 {[%clk 0:00:00]} 28. Bxf6 {[%clk 0:00:00]}  Qf5 {[%clk 0:00:00]} 29. Ba1 {[%clk 0:00:00]}  Re4 {[%clk 0:00:00]} 30. Qc3 {[%clk 0:00:00]}  Qh7 {[%clk 0:00:00]} 31. Rd3 {[%clk 0:00:00]}  Re7 {[%clk 0:00:00]} 32. Qf6 {[%clk 0:00:00]}  Ne8 {[%clk 0:00:00]} 33. Rg3+ {[%clk 0:00:00]}  Rg7 {[%clk 0:00:00]} 34. Qe6+ {[%clk 0:00:00]}  Kh8 {[%clk 0:00:00]} 35. Re1 {[%clk 0:00:00]}  Nc7 {[%clk 0:00:00]} 36. Qxd6 {[%clk 0:00:00]}  Rc8 {[%clk 0:00:00]} 37. Rxg7 {[%clk 0:00:00]}  Ne8 {[%clk 0:00:00]} 38. Rxh7+ {[%clk 0:00:00]}  Kxh7 {[%clk 0:00:00]} 39. Qd7+ {[%clk 0:00:00]}  Ng7 {[%clk 0:00:00]} 40. Qxc8 {[%clk 0:00:00]} 1-0


[Site "https://www.chess.com"]

[Event "Titled Tuesday Blitz May 2 Early 2023"]
[White "Martinez Reyes, Pedro Ramon"]
[Black "Melikhov, Evgeny V."]
[WhiteFideId "3901807"]
[BlackFideId "4122046"]
[WhiteElo "2340"]
[BlackElo "2158"]
[Result "1-0"]
[Round "07"]
[TimeControl "180+2"]
[Date "2023.05.03"]
[WhiteClock "0:00:00"]
[BlackClock "0:00:00"]

1. d4 {[%clk 0:00:01]}  Nf6 {[%clk 0:00:01]} 2. c4 {[%clk 0:00:01]}  e6 {[%clk 0:00:01]} 3. Nf3 {[%clk 0:00:01]}  d5 {[%clk 0:00:01]} 4. cxd5 {[%clk 0:00:01]}  exd5 {[%clk 0:00:01]} 5. Nc3 {[%clk 0:00:01]}  Bb4 {[%clk 0:00:01]} 6. Bg5 {[%clk 0:00:01]}  h6 {[%clk 0:00:01]} 7. Bxf6 {[%clk 0:00:01]}  Qxf6 {[%clk 0:00:01]} 8. Qb3 {[%clk 0:00:01]}  c5 {[%clk 0:00:01]} 9. a3 {[%clk 0:00:01]}  Bxc3+ {[%clk 0:00:01]} 10. bxc3 {[%clk 0:00:01]}  c4 {[%clk 0:00:01]} 11. Qb5+ {[%clk 0:00:01]}  Qc6 {[%clk 0:00:01]} 12. a4 {[%clk 0:00:01]}  a6 {[%clk 0:00:01]} 13. Qb4 {[%clk 0:00:01]}  Bf5 {[%clk 0:00:01]} 14. Ne5 {[%clk 0:00:01]}  Qc7 {[%clk 0:00:01]} 15. g4 {[%clk 0:00:01]}  Bh7 {[%clk 0:00:01]} 16. Bg2 {[%clk 0:00:01]}  Nc6 {[%clk 0:00:01]} 17. Qc5 {[%clk 0:00:01]}  O-O-O {[%clk 0:00:01]} 18. Nxc6 {[%clk 0:00:01]}  Qxc6 {[%clk 0:00:01]} 19. Qb4 {[%clk 0:00:01]}  Rhe8 {[%clk 0:00:01]} 20. Ra2 {[%clk 0:00:01]}  Qd6 {[%clk 0:00:00]} 21. Rb2 {[%clk 0:00:01]}  Qxb4 {[%clk 0:00:00]} 22. Rxb4 {[%clk 0:00:01]}  Kc7 {[%clk 0:00:00]} 23. Kd2 {[%clk 0:00:01]}  b6 {[%clk 0:00:00]} 24. Ra1 {[%clk 0:00:01]}  Rd6 {[%clk 0:00:00]} 25. e3 {[%clk 0:00:01]}  Bd3 {[%clk 0:00:00]} 26. Ra2 {[%clk 0:00:01]}  g6 {[%clk 0:00:00]} 27. Ke1 {[%clk 0:00:01]}  f5 {[%clk 0:00:00]} 28. gxf5 {[%clk 0:00:00]}  gxf5 {[%clk 0:00:00]} 29. Bf1 {[%clk 0:00:00]}  Bxf1 {[%clk 0:00:00]} 30. Kxf1 {[%clk 0:00:00]}  f4 {[%clk 0:00:00]} 31. exf4 {[%clk 0:00:00]}  Re4 {[%clk 0:00:00]} 32. Re2 {[%clk 0:00:00]}  Rxf4 {[%clk 0:00:00]} 33. Re7+ {[%clk 0:00:00]}  Kc6 {[%clk 0:00:00]} 34. Rb2 {[%clk 0:00:00]}  Rdf6 {[%clk 0:00:00]} 35. Rbe2 {[%clk 0:00:00]}  b5 {[%clk 0:00:00]} 36. axb5+ {[%clk 0:00:00]}  axb5 {[%clk 0:00:00]} 37. R2e6+ {[%clk 0:00:00]}  Rxe6 {[%clk 0:00:00]} 38. Rxe6+ {[%clk 0:00:00]}  Kc7 {[%clk 0:00:00]} 39. Ke1 {[%clk 0:00:00]}  b4 {[%clk 0:00:00]} 40. cxb4 {[%clk 0:00:00]}  Rxd4 {[%clk 0:00:00]} 41. Rxh6 {[%clk 0:00:00]}  c3 {[%clk 0:00:00]} 42. b5 {[%clk 0:00:00]}  Rc4 {[%clk 0:00:00]} 43. Kd1 {[%clk 0:00:00]}  d4 {[%clk 0:00:00]} 44. Kc2 {[%clk 0:00:00]}  Rc5 {[%clk 0:00:00]} 45. b6+ {[%clk 0:00:00]}  Kb7 {[%clk 0:00:00]} 46. Rd6 {[%clk 0:00:00]}  Rc6 {[%clk 0:00:00]} 47. Rxc6 {[%clk 0:00:00]}  Kxc6 {[%clk 0:00:00]} 48. h4 {[%clk 0:00:00]}  Kxb6 {[%clk 0:00:00]} 49. h5 {[%clk 0:00:00]}  Kc5 {[%clk 0:00:00]} 50. h6 {[%clk 0:00:00]}  Kc4 {[%clk 0:00:00]} 51. h7 {[%clk 0:00:00]}  d3+ {[%clk 0:00:00]} 52. Kc1 {[%clk 0:00:00]}  d2+ {[%clk 0:00:00]} 53. Kc2 {[%clk 0:00:00]} 1-0


[Site "https://www.chess.com"]

[Event "Titled Tuesday Blitz May 2 Early 2023"]
[White "Arnold, Ken"]
[Black "Chernov, Mikhail"]
[WhiteFideId "2056836"]
[BlackFideId "24143170"]
[WhiteElo "2355"]
[BlackElo "2113"]
[Result "0-1"]
[Round "07"]
[TimeControl "180+2"]
[Date "2023.05.03"]
[WhiteClock "0:00:00"]
[BlackClock "0:00:00"]

1. d4 {[%clk 0:00:01]}  d5 {[%clk 0:00:01]} 2. c4 {[%clk 0:00:01]}  Nc6 {[%clk 0:00:01]} 3. cxd5 {[%clk 0:00:01]}  Qxd5 {[%clk 0:00:01]} 4. Nf3 {[%clk 0:00:01]}  e5 {[%clk 0:00:01]} 5. Nc3 {[%clk 0:00:01]}  Bb4 {[%clk 0:00:01]} 6. e3 {[%clk 0:00:01]}  Bg4 {[%clk 0:00:01]} 7. Be2 {[%clk 0:00:01]}  O-O-O {[%clk 0:00:01]} 8. Qb3 {[%clk 0:00:01]}  exd4 {[%clk 0:00:01]} 9. Qxd5 {[%clk 0:00:01]}  Rxd5 {[%clk 0:00:01]} 10. exd4 {[%clk 0:00:01]}  Nxd4 {[%clk 0:00:01]} 11. Nxd4 {[%clk 0:00:01]}  Rxd4 {[%clk 0:00:01]} 12. Be3 {[%clk 0:00:01]}  Bxc3+ {[%clk 0:00:01]} 13. bxc3 {[%clk 0:00:01]}  Ra4 {[%clk 0:00:01]} 14. Bd4 {[%clk 0:00:01]}  Bxe2 {[%clk 0:00:01]} 15. Bxg7 {[%clk 0:00:01]}  Ne7 {[%clk 0:00:01]} 16. Bxh8 {[%clk 0:00:01]}  Bc4 {[%clk 0:00:01]} 17. O-O-O {[%clk 0:00:01]}  Rxa2 {[%clk 0:00:01]} 18. Rhe1 {[%clk 0:00:01]}  Nd5 {[%clk 0:00:01]} 19. Rd4 {[%clk 0:00:01]}  b5 {[%clk 0:00:00]} 20. Re8+ {[%clk 0:00:01]}  Kb7 {[%clk 0:00:00]} 21. Rd2 {[%clk 0:00:00]}  Ra1+ {[%clk 0:00:00]} 22. Kb2 {[%clk 0:00:00]}  Rh1 {[%clk 0:00:00]} 23. Be5 {[%clk 0:00:00]}  Re1 {[%clk 0:00:00]} 24. f4 {[%clk 0:00:00]}  f6 {[%clk 0:00:00]} 25. Rd8 {[%clk 0:00:00]}  fxe5 {[%clk 0:00:00]} 26. R8xd5 {[%clk 0:00:00]}  Bxd5 {[%clk 0:00:00]} 27. Rxd5 {[%clk 0:00:00]}  Re2+ {[%clk 0:00:00]} 28. Kb3 {[%clk 0:00:00]}  c6 {[%clk 0:00:00]} 29. Rxe5 {[%clk 0:00:00]}  Rxg2 {[%clk 0:00:00]} 30. Rh5 {[%clk 0:00:00]}  Kb6 {[%clk 0:00:00]} 31. Rxh7 {[%clk 0:00:00]}  Rf2 {[%clk 0:00:00]} 32. Rh4 {[%clk 0:00:00]}  a5 {[%clk 0:00:00]} 33. Rh3 {[%clk 0:00:00]}  a4+ {[%clk 0:00:00]} 34. Ka3 {[%clk 0:00:00]}  Rxf4 {[%clk 0:00:00]} 35. Rg3 {[%clk 0:00:00]}  Rf2 {[%clk 0:00:00]} 36. h4 {[%clk 0:00:00]}  Rh2 {[%clk 0:00:00]} 37. Rg4 {[%clk 0:00:00]}  Ka5 {[%clk 0:00:00]} 38. Rf4 {[%clk 0:00:00]}  Rh3 {[%clk 0:00:00]} 39. Kb2 {[%clk 0:00:00]}  c5 {[%clk 0:00:00]} 40. Rf5 {[%clk 0:00:00]}  Kb6 {[%clk 0:00:00]} 41. Rf6+ {[%clk 0:00:00]}  Kc7 {[%clk 0:00:00]} 42. Rh6 {[%clk 0:00:00]}  b4 {[%clk 0:00:00]} 43. cxb4 {[%clk 0:00:00]}  cxb4 {[%clk 0:00:00]} 44. Ra6 {[%clk 0:00:00]}  Rh2+ {[%clk 0:00:00]} 45. Kb1 {[%clk 0:00:00]}  a3 {[%clk 0:00:00]} 46. Ra4 {[%clk 0:00:00]}  Rb2+ {[%clk 0:00:00]} 47. Ka1 {[%clk 0:00:00]}  Kb6 {[%clk 0:00:00]} 48. Ra8 {[%clk 0:00:00]}  Kb5 {[%clk 0:00:00]} 0-1


[Site "https://www.chess.com"]

[Event "Titled Tuesday Blitz May 2 Early 2023"]
[White "Szente Varga, Fruzsina"]
[Black "Minko, Dmitry"]
[WhiteFideId "712264"]
[BlackFideId "24188468"]
[WhiteElo "1994"]
[BlackElo "2147"]
[Result "0-1"]
[Round "07"]
[TimeControl "180+2"]
[Date "2023.05.03"]
[WhiteClock "0:00:00"]
[BlackClock "0:00:00"]

1. e4 {[%clk 0:00:01]}  e5 {[%clk 0:00:01]} 2. Nf3 {[%clk 0:00:01]}  Nc6 {[%clk 0:00:01]} 3. Bb5 {[%clk 0:00:01]}  Nf6 {[%clk 0:00:01]} 4. O-O {[%clk 0:00:01]}  Nxe4 {[%clk 0:00:01]} 5. Re1 {[%clk 0:00:01]}  Nd6 {[%clk 0:00:01]} 6. Bxc6 {[%clk 0:00:01]}  dxc6 {[%clk 0:00:01]} 7. Nxe5 {[%clk 0:00:01]}  Be7 {[%clk 0:00:01]} 8. Qe2 {[%clk 0:00:01]}  Be6 {[%clk 0:00:01]} 9. d4 {[%clk 0:00:01]}  Nf5 {[%clk 0:00:01]} 10. c3 {[%clk 0:00:01]}  O-O {[%clk 0:00:01]} 11. Nd3 {[%clk 0:00:01]}  Bd6 {[%clk 0:00:01]} 12. Bf4 {[%clk 0:00:01]}  Re8 {[%clk 0:00:01]} 13. Qd2 {[%clk 0:00:01]}  Bc4 {[%clk 0:00:01]} 14. Bxd6 {[%clk 0:00:01]}  Nxd6 {[%clk 0:00:01]} 15. Ne5 {[%clk 0:00:01]}  Bd5 {[%clk 0:00:01]} 16. Na3 {[%clk 0:00:01]}  Qh4 {[%clk 0:00:01]} 17. Re3 {[%clk 0:00:01]}  f6 {[%clk 0:00:01]} 18. Rh3 {[%clk 0:00:00]}  Qe4 {[%clk 0:00:01]} 19. Nf3 {[%clk 0:00:00]}  Qe2 {[%clk 0:00:01]} 20. Qxe2 {[%clk 0:00:00]}  Rxe2 {[%clk 0:00:01]} 21. b3 {[%clk 0:00:00]}  Rae8 {[%clk 0:00:00]} 22. Kf1 {[%clk 0:00:00]}  b5 {[%clk 0:00:00]} 23. Ne1 {[%clk 0:00:00]}  Rd2 {[%clk 0:00:00]} 24. Nd3 {[%clk 0:00:00]}  Ree2 {[%clk 0:00:00]} 25. Re1 {[%clk 0:00:00]}  Rxe1+ {[%clk 0:00:00]} 26. Kxe1 {[%clk 0:00:00]}  Rxa2 {[%clk 0:00:00]} 27. Nb1 {[%clk 0:00:00]}  Ra1 {[%clk 0:00:00]} 0-1


[Site "https://www.chess.com"]

[Event "Titled Tuesday Blitz May 2 Early 2023"]
[White "Mogirzan, Matei-Valeriu"]
[Black "Ronka, Erik"]
[WhiteFideId "1257455"]
[BlackFideId "505080"]
[WhiteElo "1733"]
[BlackElo "2264"]
[Result "0-1"]
[Round "07"]
[TimeControl "180+2"]
[Date "2023.05.03"]
[WhiteClock "0:00:00"]
[BlackClock "0:00:00"]

1. e4 {[%clk 0:00:01]}  a6 {[%clk 0:00:01]} 2. d4 {[%clk 0:00:01]}  c5 {[%clk 0:00:01]} 3. dxc5 {[%clk 0:00:01]}  e6 {[%clk 0:00:01]} 4. Be3 {[%clk 0:00:01]}  Qc7 {[%clk 0:00:01]} 5. b4 {[%clk 0:00:01]}  a5 {[%clk 0:00:01]} 6. c3 {[%clk 0:00:01]}  Nf6 {[%clk 0:00:01]} 7. f3 {[%clk 0:00:01]}  d6 {[%clk 0:00:01]} 8. Na3 {[%clk 0:00:01]}  dxc5 {[%clk 0:00:01]} 9. Nb5 {[%clk 0:00:01]}  Qc6 {[%clk 0:00:01]} 10. Bf4 {[%clk 0:00:00]}  Na6 {[%clk 0:00:01]} 11. a4 {[%clk 0:00:00]}  Bd7 {[%clk 0:00:01]} 12. bxa5 {[%clk 0:00:00]}  Be7 {[%clk 0:00:01]} 13. Nd6+ {[%clk 0:00:00]}  Bxd6 {[%clk 0:00:01]} 14. Qxd6 {[%clk 0:00:00]}  Qxd6 {[%clk 0:00:01]} 15. Bxd6 {[%clk 0:00:00]}  O-O-O {[%clk 0:00:01]} 16. Bxa6 {[%clk 0:00:00]}  bxa6 {[%clk 0:00:01]} 17. e5 {[%clk 0:00:00]}  Nd5 {[%clk 0:00:01]} 18. Rb1 {[%clk 0:00:00]}  Bc6 {[%clk 0:00:01]} 19. Ne2 {[%clk 0:00:00]}  Kd7 {[%clk 0:00:01]} 20. Kf2 {[%clk 0:00:00]}  f6 {[%clk 0:00:00]} 21. c4 {[%clk 0:00:00]}  Nb4 {[%clk 0:00:00]} 22. Rhd1 {[%clk 0:00:00]}  Kc8 {[%clk 0:00:00]} 23. f4 {[%clk 0:00:00]}  Bxa4 {[%clk 0:00:00]} 24. Nc3 {[%clk 0:00:00]}  Bxd1 {[%clk 0:00:00]} 25. Rxd1 {[%clk 0:00:00]}  fxe5 {[%clk 0:00:00]} 26. fxe5 {[%clk 0:00:00]}  Nc6 {[%clk 0:00:00]} 27. Na4 {[%clk 0:00:00]}  Nxe5 {[%clk 0:00:00]} 28. Nxc5 {[%clk 0:00:00]}  Nxc4 {[%clk 0:00:00]} 29. Rc1 {[%clk 0:00:00]}  Nxd6 {[%clk 0:00:00]} 30. Nxe6+ {[%clk 0:00:00]}  Kd7 {[%clk 0:00:00]} 31. Nxd8 {[%clk 0:00:00]}  Rxd8 {[%clk 0:00:00]} 32. Rb1 {[%clk 0:00:00]}  Nb5 {[%clk 0:00:00]} 33. Rc1 {[%clk 0:00:00]}  Rc8 {[%clk 0:00:00]} 34. Rd1+ {[%clk 0:00:00]}  Ke7 {[%clk 0:00:00]} 35. Rd5 {[%clk 0:00:00]}  Rc3 {[%clk 0:00:00]} 36. g4 {[%clk 0:00:00]}  Ra3 {[%clk 0:00:00]} 37. Rc5 {[%clk 0:00:00]}  Rxa5 {[%clk 0:00:00]} 38. g5 {[%clk 0:00:00]}  Kf7 {[%clk 0:00:00]} 39. Kg3 {[%clk 0:00:00]}  Ra3+ {[%clk 0:00:00]} 40. Kg4 {[%clk 0:00:00]}  Ra4+ {[%clk 0:00:00]} 41. Kg3 {[%clk 0:00:00]}  Nd6 {[%clk 0:00:00]} 42. Rc7+ {[%clk 0:00:00]}  Kg6 {[%clk 0:00:00]} 43. h4 {[%clk 0:00:00]}  Nf5+ {[%clk 0:00:00]} 44. Kf3 {[%clk 0:00:00]}  Nxh4+ {[%clk 0:00:00]} 45. Ke3 {[%clk 0:00:00]}  Nf5+ {[%clk 0:00:00]} 46. Kf3 {[%clk 0:00:00]}  Kxg5 {[%clk 0:00:00]} 47. Ke2 {[%clk 0:00:00]}  Ra3 {[%clk 0:00:00]} 48. Kd2 {[%clk 0:00:00]}  h5 {[%clk 0:00:00]} 49. Kc2 {[%clk 0:00:00]}  h4 {[%clk 0:00:00]} 50. Kb2 {[%clk 0:00:00]}  Rg3 {[%clk 0:00:00]} 0-1


[Site "https://www.chess.com"]

[Event "Titled Tuesday Blitz May 2 Early 2023"]
[White "Balague Camps, Marc"]
[Black "Kozelov, Roman"]
[WhiteFideId "2297914"]
[BlackFideId "14133377"]
[WhiteElo "2089"]
[BlackElo "2149"]
[Result "0-1"]
[Round "07"]
[TimeControl "180+2"]
[Date "2023.05.03"]
[WhiteClock "0:00:00"]
[BlackClock "0:00:00"]

1. d4 {[%clk 0:00:01]}  d5 {[%clk 0:00:01]} 2. c4 {[%clk 0:00:01]}  e5 {[%clk 0:00:01]} 3. dxe5 {[%clk 0:00:01]}  d4 {[%clk 0:00:01]} 4. a3 {[%clk 0:00:01]}  Nc6 {[%clk 0:00:01]} 5. Nf3 {[%clk 0:00:01]}  Bg4 {[%clk 0:00:01]} 6. Bf4 {[%clk 0:00:01]}  Nge7 {[%clk 0:00:01]} 7. Qa4 {[%clk 0:00:01]}  Ng6 {[%clk 0:00:01]} 8. Bg3 {[%clk 0:00:01]}  Qd7 {[%clk 0:00:01]} 9. h3 {[%clk 0:00:01]}  Bxf3 {[%clk 0:00:01]} 10. exf3 {[%clk 0:00:01]}  Ngxe5 {[%clk 0:00:01]} 11. Nd2 {[%clk 0:00:01]}  a6 {[%clk 0:00:01]} 12. Be2 {[%clk 0:00:01]}  O-O-O {[%clk 0:00:01]} 13. O-O {[%clk 0:00:01]}  d3 {[%clk 0:00:01]} 14. Bd1 {[%clk 0:00:01]}  h5 {[%clk 0:00:01]} 15. b4 {[%clk 0:00:01]}  f6 {[%clk 0:00:01]} 16. b5 {[%clk 0:00:01]}  Nb8 {[%clk 0:00:01]} 17. Qb3 {[%clk 0:00:01]}  Bc5 {[%clk 0:00:00]} 18. bxa6 {[%clk 0:00:01]}  Nxa6 {[%clk 0:00:00]} 19. Rb1 {[%clk 0:00:01]}  Bb6 {[%clk 0:00:00]} 20. Ne4 {[%clk 0:00:01]}  Qd4 {[%clk 0:00:00]} 21. c5 {[%clk 0:00:01]}  Nxc5 {[%clk 0:00:00]} 22. Nxc5 {[%clk 0:00:01]}  Qxc5 {[%clk 0:00:00]} 23. Qa4 {[%clk 0:00:01]}  Kb8 {[%clk 0:00:00]} 24. Kh1 {[%clk 0:00:00]}  g5 {[%clk 0:00:00]} 25. Rb5 {[%clk 0:00:00]}  Qd4 {[%clk 0:00:00]} 26. Qb3 {[%clk 0:00:00]}  g4 {[%clk 0:00:00]} 27. Bxe5 {[%clk 0:00:00]}  fxe5 {[%clk 0:00:00]} 28. fxg4 {[%clk 0:00:00]}  hxg4 {[%clk 0:00:00]} 29. Rb4 {[%clk 0:00:00]}  Qd5 {[%clk 0:00:00]} 30. Bxg4 {[%clk 0:00:00]}  Qxb3 {[%clk 0:00:00]} 31. Rxb3 {[%clk 0:00:00]}  Rhf8 {[%clk 0:00:00]} 32. Bf3 {[%clk 0:00:00]}  Rd4 {[%clk 0:00:00]} 33. Rb4 {[%clk 0:00:00]}  Rxb4 {[%clk 0:00:00]} 34. axb4 {[%clk 0:00:00]}  Rf4 {[%clk 0:00:00]} 35. Rd1 {[%clk 0:00:00]}  e4 {[%clk 0:00:00]} 36. Bg4 {[%clk 0:00:00]}  Rxf2 {[%clk 0:00:00]} 37. h4 {[%clk 0:00:00]}  d2 {[%clk 0:00:00]} 38. Kh2 {[%clk 0:00:00]}  e3 {[%clk 0:00:00]} 39. Kg3 {[%clk 0:00:00]}  c6 {[%clk 0:00:00]} 40. h5 {[%clk 0:00:00]}  Bc7+ {[%clk 0:00:00]} 41. Kh4 {[%clk 0:00:00]}  Bf4 {[%clk 0:00:00]} 42. g3 {[%clk 0:00:00]}  Bh6 {[%clk 0:00:00]} 43. Kh3 {[%clk 0:00:00]}  e2 {[%clk 0:00:00]} 44. Bxe2 {[%clk 0:00:00]}  Rxe2 {[%clk 0:00:00]} 45. Kg4 {[%clk 0:00:00]}  Re1 {[%clk 0:00:00]} 46. Rxd2 {[%clk 0:00:00]}  Bxd2 {[%clk 0:00:00]} 47. Kf5 {[%clk 0:00:00]}  Rg1 {[%clk 0:00:00]} 48. g4 {[%clk 0:00:00]}  Kc7 {[%clk 0:00:00]} 0-1


[Site "https://www.chess.com"]

[Event "Titled Tuesday Blitz May 2 Early 2023"]
[White "Ansh M Shah"]
[Black "Shvedova, Alexandra"]
[WhiteFideId "25033379"]
[BlackFideId "54154782"]
[WhiteElo "2084"]
[BlackElo "2057"]
[Result "0-1"]
[Round "07"]
[TimeControl "180+2"]
[Date "2023.05.03"]
[WhiteClock "0:00:01"]
[BlackClock "0:00:01"]

1. d4 {[%clk 0:00:01]}  Nf6 {[%clk 0:00:01]} 2. c4 {[%clk 0:00:01]}  e6 {[%clk 0:00:01]} 3. g3 {[%clk 0:00:01]}  d5 {[%clk 0:00:01]} 4. Bg2 {[%clk 0:00:01]}  dxc4 {[%clk 0:00:01]} 5. Nf3 {[%clk 0:00:01]}  Nc6 {[%clk 0:00:01]} 6. O-O {[%clk 0:00:01]}  Rb8 {[%clk 0:00:01]} 7. Nc3 {[%clk 0:00:01]}  b5 {[%clk 0:00:01]} 8. a3 {[%clk 0:00:01]}  Be7 {[%clk 0:00:01]} 9. e4 {[%clk 0:00:01]}  O-O {[%clk 0:00:01]} 10. d5 {[%clk 0:00:01]}  exd5 {[%clk 0:00:01]} 11. exd5 {[%clk 0:00:01]}  Na5 {[%clk 0:00:01]} 12. Bf4 {[%clk 0:00:01]}  Nb3 {[%clk 0:00:01]} 13. Ra2 {[%clk 0:00:01]}  a6 {[%clk 0:00:01]} 14. Nd4 {[%clk 0:00:01]}  Nxd4 {[%clk 0:00:01]} 15. Qxd4 {[%clk 0:00:01]}  Bb7 {[%clk 0:00:01]} 16. Rd1 {[%clk 0:00:01]}  Qd7 {[%clk 0:00:01]} 17. Raa1 {[%clk 0:00:01]}  Rbd8 {[%clk 0:00:01]} 18. Qa7 {[%clk 0:00:01]}  Qc8 {[%clk 0:00:01]} 19. d6 {[%clk 0:00:01]}  Bxg2 {[%clk 0:00:01]} 20. dxe7 {[%clk 0:00:01]}  Rxd1+ {[%clk 0:00:01]} 21. Rxd1 {[%clk 0:00:01]}  Re8 {[%clk 0:00:01]} 22. Kxg2 {[%clk 0:00:01]}  Rxe7 {[%clk 0:00:01]} 23. Qb7 {[%clk 0:00:01]}  Qxb7+ {[%clk 0:00:01]} 0-1


[Site "https://www.chess.com"]